[Event "Junior-SM 2025"]
[Site "Uppsala, Sweden"]
[Date "2025.06.29"]
[Round "2.3"]
[White "Karlsson, Stefan"]
[Black "Sandberg, Lucas"]
[Result "0-1"]
[TimeControl "90 min for 40 move + 30 min with an increment of 30 sec starting move 1"]
[WhiteFideId "1771183"]
[BlackFideId "1773712"]
[WhiteElo "2126"]
[BlackElo "2243"]

1. e4 {[%clk 01:30:43]} {[%emt 00:00:16]} Nc6 {[%emt 00:03:20]} 2. Nc3 {[%clk
01:24:01]} {[%emt 00:04:09]} g6 {[%clk 01:29:48]} {[%emt 00:01:25]} 3. d4
{[%clk 01:24:07]} {[%emt 00:00:25]} Bg7 {[%clk 01:30:01]} {[%emt 00:00:17]} 4.
Be3 {[%clk 01:23:48]} {[%emt 00:00:48]} d6 {[%clk 01:30:27]} {[%emt 00:00:05]}
5. Qd2 {[%clk 01:21:35]} {[%emt 00:02:41]} e5 {[%clk 01:29:48]} {[%emt
00:01:11]} 6. Nge2 {[%clk 01:16:25]} {[%emt 00:05:39]} Nf6 {[%clk 01:28:57]}
{[%emt 00:01:21]} 7. d5 {[%clk 01:16:23]} {[%emt 00:00:32]} Ne7 {[%clk
01:29:22]} {[%emt 00:00:05]} 8. Bh6 {[%clk 01:12:18]} {[%emt 00:04:35]} O-O
{[%clk 01:28:43]} {[%emt 00:01:10]} 9. f3 {[%clk 01:11:02]} {[%emt 00:01:45]}
c6 {[%clk 01:28:47]} {[%emt 00:00:27]} 10. dxc6 {[%clk 00:49:16]} {[%emt
00:22:16]} bxc6 {[%clk 01:28:53]} {[%emt 00:00:23]} 11. O-O-O {[%clk 00:49:07]}
{[%emt 00:00:39]} d5 {[%clk 01:25:37]} {[%emt 00:03:47]} 12. Kb1 {[%clk
00:43:04]} {[%emt 00:06:32]} Qc7 {[%clk 01:22:44]} {[%emt 00:03:23]} 13. Nc1
{[%clk 00:41:42]} {[%emt 00:01:53]} d4 {[%clk 01:20:35]} {[%emt 00:02:40]} 14.
Bxg7 {[%clk 00:39:22]} {[%emt 00:02:51]} Kxg7 {[%clk 01:20:16]} {[%emt
00:00:48]} 15. Na4 {[%clk 00:38:55]} {[%emt 00:00:57]} c5 {[%clk 01:19:33]}
{[%emt 00:01:12]} 16. b3 {[%clk 00:36:24]} {[%emt 00:02:58]} Be6 {[%clk
01:13:32]} {[%emt 00:06:34]} 17. Nb2 {[%clk 00:35:57]} {[%emt 00:00:57]} Nc8
{[%clk 01:11:39]} {[%emt 00:02:24]} 18. Bc4 {[%clk 00:34:59]} {[%emt 00:01:28]}
Bxc4 {[%clk 01:05:47]} {[%emt 00:06:22]} 19. Nxc4 {[%clk 00:35:09]} {[%emt
00:00:19]} Nb6 {[%clk 01:04:33]} {[%emt 00:01:42]} 20. Qa5 {[%clk 00:23:12]}
{[%emt 00:12:29]} Rfc8 {[%clk 00:59:12]} {[%emt 00:05:52]} 21. Qa6 {[%clk
00:16:09]} {[%emt 00:07:33]} Nfd7 {[%clk 00:57:57]} {[%emt 00:01:45]} 22. Nd3
{[%emt 00:15:00]} Nxc4 {[%clk 00:43:54]} {[%emt 00:00:02]} 23. Qxc4 {[%clk
00:16:07]} {[%emt 00:00:34]} Nb6 {[%clk 00:44:01]} {[%emt 00:00:23]} 24. Qb5
{[%clk 00:16:14]} {[%emt 00:00:22]} f6 {[%clk 00:42:16]} {[%emt 00:02:14]} 25.
Nb2 {[%clk 00:13:06]} {[%emt 00:03:38]} c4 {[%clk 00:41:22]} {[%emt 00:01:25]}
26. Nxc4 {[%clk 00:12:24]} {[%emt 00:01:12]} Nxc4 {[%clk 00:40:30]} {[%emt
00:01:22]} 27. Qxc4 {[%clk 00:12:46]} {[%emt 00:00:09]} Qxc4 {[%clk 00:40:54]}
{[%emt 00:00:05]} 28. bxc4 {[%clk 00:13:07]} {[%emt 00:00:09]} Rab8+ {[%clk
00:37:57]} {[%emt 00:03:27]} 29. Ka1 {[%clk 00:10:27]} {[%emt 00:03:10]} Rxc4
{[%clk 00:38:17]} {[%emt 00:00:11]} 30. Rd2 {[%clk 00:07:09]} {[%emt 00:03:47]}
Rbc8 {[%clk 00:31:21]} {[%emt 00:07:26]} 31. Kb2 {[%clk 00:06:59]} {[%emt
00:00:40]} a5 {[%clk 00:31:42]} {[%emt 00:00:10]} 32. Rb1 {[%clk 00:06:44]}
{[%emt 00:00:45]} Kh6 {[%clk 00:28:42]} {[%emt 00:03:29]} 33. Kc1 {[%clk
00:05:53]} {[%emt 00:01:21]} Ra4 {[%clk 00:26:53]} {[%emt 00:02:19]} 34. Rb2
{[%clk 00:05:55]} {[%emt 00:00:28]} Ra3 {[%clk 00:26:59]} {[%emt 00:00:23]} 35.
Kb1 {[%clk 00:05:11]} {[%emt 00:01:15]} Rac3 {[%clk 00:19:24]} {[%emt
00:08:05]} 36. Rb3 {[%clk 00:03:57]} {[%emt 00:01:45]} Kg5 {[%clk 00:12:54]}
{[%emt 00:06:59]} 37. g3 {[%clk 00:02:35]} {[%emt 00:01:51]} a4 {[%clk
00:11:36]} {[%emt 00:01:49]} 38. Rxc3 {[%clk 00:02:34]} {[%emt 00:00:31]} Rxc3
{[%clk 00:11:49]} {[%emt 00:00:17]} 39. Rd3 {[%clk 00:02:40]} {[%emt 00:00:24]}
f5 {[%clk 00:10:37]} {[%emt 00:01:42]} 40. exf5 {[%clk 00:00:45]} {[%emt
00:02:25]} gxf5 {[%clk 00:08:55]} {[%emt 00:02:12]} 41. Kc1 {[%clk 00:18:15]}
{[%emt 00:13:00]} Rc4 {[%clk 00:38:42]} {[%emt 00:00:43]} 42. f4+ {[%clk
00:09:54]} {[%emt 00:08:51]} exf4 {[%clk 00:38:27]} {[%emt 00:00:45]} 43. gxf4+
{[%clk 00:10:21]} {[%emt 00:00:03]} Kxf4 {[%clk 00:38:50]} {[%emt 00:00:07]} 44.
Rh3 {[%clk 00:09:19]} {[%emt 00:01:31]} Rc7 {[%clk 00:36:49]} {[%emt 00:02:31]}
45. Kd2 {[%clk 00:09:25]} {[%emt 00:00:25]} Ke4 {[%clk 00:37:09]} {[%emt
00:00:10]} 46. Rh6 {[%clk 00:08:33]} {[%emt 00:01:22]} f4 {[%clk 00:35:18]}
{[%emt 00:02:22]} 47. Re6+ {[%clk 00:05:05]} {[%emt 00:03:58]} Kf3 {[%clk
00:35:05]} {[%emt 00:00:42]} 48. Ra6 {[%clk 00:04:40]} {[%emt 00:00:55]} Rc4
{[%clk 00:29:48]} {[%emt 00:05:47]} 49. Kd3 {[%clk 00:04:25]} {[%emt 00:00:45]}
Rc3+ {[%clk 00:30:13]} {[%emt 00:00:05]} 50. Kxd4 {[%clk 00:04:32]} {[%emt
00:00:23]} Rxc2 {[%clk 00:30:39]} {[%emt 00:00:04]} 51. Rxa4 {[%clk 00:04:55]}
{[%emt 00:00:07]} Rxh2 {[%clk 00:31:03]} {[%emt 00:00:06]} 52. Ra3+ {[%clk
00:03:00]} {[%emt 00:02:26]} Kg4 {[%clk 00:30:31]} {[%emt 00:01:01]} 53. Ra7
{[%clk 00:02:44]} {[%emt 00:00:46]} h5 {[%clk 00:30:10]} {[%emt 00:00:50]} 54.
a4 {[%clk 00:02:41]} {[%emt 00:00:34]} h4 {[%clk 00:28:46]} {[%emt 00:01:54]}
55. a5 {[%clk 00:03:05]} {[%emt 00:00:07]} h3 {[%clk 00:29:11]} {[%emt
00:00:03]} 56. Rg7 {[%clk 00:03:08]} {[%emt 00:00:27]} Kf3 {[%clk 00:29:32]}
{[%emt 00:00:10]} 57. a6 {[%clk 00:02:49]} {[%emt 00:00:49]} Ra2 {[%clk
00:29:33]} {[%emt 00:00:28]} 58. a7 {[%clk 00:02:50]} {[%emt 00:00:29]} h2
{[%clk 00:29:54]} {[%emt 00:00:09]} 59. Rh7 {[%clk 00:03:10]} {[%emt 00:00:11]}
Rxa7 {[%clk 00:30:02]} {[%emt 00:00:22]} 60. Rxh2 {[%clk 00:03:27]} {[%emt
00:00:12]} Re7 {[%clk 00:30:24]} {[%emt 00:00:07]} 61. Rh8 {[%clk 00:02:39]}
{[%emt 00:01:18]} Kf2 {[%clk 00:30:15]} {[%emt 00:00:40]} 62. Kd3 {[%clk
00:01:19]} {[%emt 00:01:51]} f3 {[%clk 00:30:39]} {[%emt 00:00:06]} 63. Rh2+
{[%clk 00:01:03]} {[%emt 00:00:45]} Kg1 {[%clk 00:30:55]} {[%emt 00:00:13]} 64.
Rh8 {[%clk 00:01:25]} {[%emt 00:00:08]} f2 {[%clk 00:31:20]} {[%emt 00:00:06]}
65. Rg8+ {[%clk 00:01:53]} {[%emt 00:00:03]} Kf1 {[%clk 00:31:40]} {[%emt
00:00:09]} 66. Ra8 {[%clk 00:00:38]} {[%emt 00:01:45]} Rg7 {[%clk 00:31:57]}
{[%emt 00:00:13]} 67. Re8 {[%emt 00:00:38]} 0-1

[Event "Junior-SM 2025"]
[Site "Uppsala, Sweden"]
[Date "2025.06.29"]
[Round "2.4"]
[White "Ral Lustig, Melvin"]
[Black "Wernber, Hugo"]
[Result "1/2-1/2"]
[TimeControl "90 min for 40 move + 30 min with an increment of 30 sec starting move 1"]
[WhiteTitle "CM"]
[BlackTitle "FM"]
[WhiteFideId "1764195"]
[BlackFideId "1737511"]
[WhiteElo "2233"]
[BlackElo "2247"]

1. Nf3 {[%clk 01:30:56]} {[%emt 00:00:03]} d5 {[%clk 01:23:09]} {[%emt
00:07:51]} 2. e3 {[%clk 01:31:20]} {[%emt 00:00:06]} Nf6 {[%clk 01:21:12]}
{[%emt 00:02:27]} 3. c4 {[%clk 01:31:28]} {[%emt 00:00:23]} c6 {[%clk
01:20:53]} {[%emt 00:00:48]} 4. Nc3 {[%clk 01:31:45]} {[%emt 00:00:13]} e6
{[%clk 01:18:48]} {[%emt 00:02:35]} 5. d4 {[%clk 01:31:15]} {[%emt 00:01:00]}
Nbd7 {[%clk 01:18:52]} {[%emt 00:00:26]} 6. Be2 {[%clk 01:31:39]} {[%emt
00:00:06]} dxc4 {[%clk 01:16:31]} {[%emt 00:02:52]} 7. a4 {[%clk 01:30:45]}
{[%emt 00:01:24]} Bd6 {[%clk 01:14:02]} {[%emt 00:02:57]} 8. Nd2 {[%clk
01:31:07]} {[%emt 00:00:10]} e5 {[%clk 01:12:09]} {[%emt 00:02:23]} 9. Nxc4
{[%clk 01:30:51]} {[%emt 00:00:46]} Bc7 {[%clk 01:10:51]} {[%emt 00:01:47]} 10.
b3 {[%clk 01:15:31]} {[%emt 00:15:50]} O-O {[%clk 01:08:29]} {[%emt 00:02:52]}
11. Ba3 {[%clk 01:15:34]} {[%emt 00:00:27]} Re8 {[%clk 01:08:37]} {[%emt
00:00:22]} 12. O-O {[%clk 00:57:00]} {[%emt 00:19:04]} Nd5 {[%clk 00:40:38]}
{[%emt 00:28:28]} 13. Nxd5 {[%clk 00:50:35]} {[%emt 00:06:56]} cxd5 {[%clk
00:41:00]} {[%emt 00:00:08]} 14. Nd6 {[%clk 00:48:37]} {[%emt 00:02:27]} Re6
{[%clk 00:37:37]} {[%emt 00:03:54]} 15. Nb5 {[%clk 00:47:49]} {[%emt 00:01:19]}
Bb8 {[%clk 00:34:02]} {[%emt 00:04:04]} 16. dxe5 {[%clk 00:40:39]} {[%emt
00:07:40]} Nxe5 {[%clk 00:27:45]} {[%emt 00:06:47]} 17. Rc1 {[%clk 00:37:54]}
{[%emt 00:03:14]} Nc6 {[%clk 00:26:23]} {[%emt 00:01:51]} 18. g3 {[%clk
00:30:24]} {[%emt 00:08:01]} Re8 {[%clk 00:22:56]} {[%emt 00:03:57]} 19. Bf3
{[%clk 00:29:38]} {[%emt 00:01:17]} Be6 {[%clk 00:23:09]} {[%emt 00:00:16]} 20.
Nd4 {[%clk 00:24:41]} {[%emt 00:05:27]} Qd7 {[%clk 00:21:47]} {[%emt 00:01:51]}
21. Qd2 {[%clk 00:21:33]} {[%emt 00:03:39]} Nxd4 {[%clk 00:17:23]} {[%emt
00:04:55]} 22. Qxd4 {[%clk 00:21:49]} {[%emt 00:00:14]} f6 {[%clk 00:17:32]}
{[%emt 00:00:20]} 23. Rfd1 {[%clk 00:21:23]} {[%emt 00:00:56]} Be5 {[%clk
00:17:41]} {[%emt 00:00:20]} 24. Qd3 {[%clk 00:19:21]} {[%emt 00:02:33]} Red8
{[%clk 00:16:56]} {[%emt 00:01:15]} 25. Bc5 {[%clk 00:19:27]} {[%emt 00:00:25]}
b6 {[%clk 00:12:13]} {[%emt 00:05:13]} 26. Bd4 {[%clk 00:19:05]} {[%emt
00:00:52]} Rac8 {[%clk 00:12:18]} {[%emt 00:00:25]} 27. Qd2 {[%clk 00:15:17]}
{[%emt 00:04:17]} Bb8 {[%clk 00:10:49]} {[%emt 00:01:58]} 28. Qb2 {[%clk
00:10:31]} {[%emt 00:05:17]} Rxc1 {[%clk 00:10:25]} {[%emt 00:00:54]} 29. Qxc1
{[%clk 00:10:00]} {[%emt 00:01:01]} Bd6 {[%clk 00:09:07]} {[%emt 00:01:47]}
1/2-1/2

[Event "Junior-SM 2025"]
[Site "Uppsala, Sweden"]
[Date "2025.06.29"]
[Round "2.5"]
[White "Grahn, Vidar"]
[Black "Seo, Jung Hyun"]
[Result "1/2-1/2"]
[TimeControl "90 min for 40 move + 30 min with an increment of 30 sec starting move 1"]
[WhiteTitle "FM"]
[WhiteFideId "1744780"]
[BlackFideId "1735667"]
[WhiteElo "2239"]
[BlackElo "2153"]

1. e4 {[%clk 01:30:52]} {[%emt 00:00:07]} e5 {[%clk 01:30:33]} {[%emt
00:00:27]} 2. Nf3 {[%clk 01:31:07]} {[%emt 00:00:16]} Nc6 {[%clk 01:30:59]}
{[%emt 00:00:04]} 3. Bb5 {[%clk 01:30:41]} {[%emt 00:00:56]} a6 {[%clk
01:30:51]} {[%emt 00:00:38]} 4. Ba4 {[%clk 01:30:47]} {[%emt 00:00:24]} Nf6
{[%clk 01:31:15]} {[%emt 00:00:06]} 5. O-O {[%clk 01:31:02]} {[%emt 00:00:15]}
Be7 {[%clk 01:31:21]} {[%emt 00:00:24]} 6. Re1 {[%clk 01:31:04]} {[%emt
00:00:28]} b5 {[%clk 01:31:05]} {[%emt 00:00:46]} 7. Bb3 {[%clk 01:31:28]}
{[%emt 00:00:06]} O-O {[%clk 01:31:04]} {[%emt 00:00:31]} 8. Nc3 {[%clk
01:28:18]} {[%emt 00:03:40]} d6 {[%clk 01:30:59]} {[%emt 00:00:34]} 9. h3
{[%clk 01:23:02]} {[%emt 00:05:46]} Na5 {[%clk 01:19:38]} {[%emt 00:11:52]} 10.
d3 {[%clk 01:23:06]} {[%emt 00:00:26]} h6 {[%clk 01:16:46]} {[%emt 00:03:22]}
11. Be3 {[%clk 01:20:52]} {[%emt 00:02:44]} Bb7 {[%clk 01:10:21]} {[%emt
00:06:54]} 12. Nd2 {[%clk 01:03:30]} {[%emt 00:17:52]} Nxb3 {[%clk 01:05:50]}
{[%emt 00:05:01]} 13. axb3 {[%clk 01:03:48]} {[%emt 00:00:13]} d5 {[%clk
01:01:54]} {[%emt 00:04:25]} 14. d4 {[%clk 01:00:14]} {[%emt 00:04:05]} b4
{[%clk 00:52:06]} {[%emt 00:10:19]} 15. Nxd5 {[%clk 00:58:50]} {[%emt
00:01:54]} Nxd5 {[%clk 00:50:42]} {[%emt 00:01:53]} 16. exd5 {[%clk 00:59:16]}
{[%emt 00:00:05]} Qxd5 {[%clk 00:46:20]} {[%emt 00:04:52]} 17. Nf3 {[%clk
00:59:07]} {[%emt 00:00:38]} exd4 {[%clk 00:45:06]} {[%emt 00:01:44]} 18. Qxd4
{[%clk 00:57:40]} {[%emt 00:01:58]} Qh5 {[%clk 00:40:37]} {[%emt 00:04:58]} 19.
Qg4 {[%clk 00:56:51]} {[%emt 00:01:19]} Qxg4 {[%clk 00:40:53]} {[%emt
00:00:15]} 20. hxg4 {[%clk 00:57:15]} {[%emt 00:00:06]} Rfe8 {[%clk 00:39:25]}
{[%emt 00:01:57]} 21. Red1 {[%clk 00:54:07]} {[%emt 00:03:38]} Bd6 {[%clk
00:36:53]} {[%emt 00:03:03]} 22. Nd2 {[%clk 00:53:11]} {[%emt 00:01:26]} Bc8
{[%clk 00:32:18]} {[%emt 00:05:04]} 23. Nc4 {[%clk 00:47:52]} {[%emt 00:05:49]}
Bxg4 {[%clk 00:30:55]} {[%emt 00:01:54]} 24. Nxd6 {[%clk 00:47:00]} {[%emt
00:01:21]} cxd6 {[%clk 00:31:20]} {[%emt 00:00:05]} 1/2-1/2

[ePGN "0.1;DGT LiveChess/2.2.7"]

[Event "Junior-SM 2025"]
[Site "Uppsala, Sweden"]
[Date "2025.06.28"]
[Round "1.1"]
[White "Religa, Marek"]
[Black "Nilsson, Oliver"]
[Result "1/2-1/2"]
[TimeControl "90 min for 40 move + 30 min with an increment of 30 sec starting move 1"]
[WhiteFideId "1750208"]
[BlackFideId "1730177"]
[WhiteElo "2228"]
[BlackElo "2129"]

1. c4 {[%clk 01:30:51]} {[%emt 00:00:08]} e5 {[%clk 01:30:54]} {[%emt
00:00:06]} 2. Nc3 {[%clk 01:31:07]} {[%emt 00:00:15]} d6 {[%clk 01:31:20]}
{[%emt 00:00:05]} 3. g3 {[%clk 01:28:14]} {[%emt 00:03:22]} f5 {[%clk
01:31:36]} {[%emt 00:00:14]} 4. Bg2 {[%clk 01:28:08]} {[%emt 00:00:36]} Nf6
{[%clk 01:31:49]} {[%emt 00:00:16]} 5. d3 {[%clk 01:21:59]} {[%emt 00:06:40]}
Be7 {[%clk 01:31:30]} {[%emt 00:00:48]} 6. Nf3 {[%clk 01:21:10]} {[%emt
00:01:20]} O-O {[%clk 01:31:40]} {[%emt 00:00:21]} 7. O-O {[%clk 01:20:47]}
{[%emt 00:00:52]} Qe8 {[%clk 01:31:59]} {[%emt 00:00:11]} 8. Rb1 {[%clk
01:19:34]} {[%emt 00:01:43]} a5 {[%clk 01:26:26]} {[%emt 00:06:03]} 9. a3
{[%clk 01:20:03]} {[%emt 00:00:01]} h6 {[%clk 01:19:21]} {[%emt 00:07:35]} 10.
b4 {[%clk 01:20:07]} {[%emt 00:00:27]} axb4 {[%clk 01:19:45]} {[%emt 00:00:06]}
11. axb4 {[%clk 01:20:35]} {[%emt 00:00:01]} Be6 {[%clk 01:18:09]} {[%emt
00:02:06]} 12. Ne1 {[%clk 01:11:20]} {[%emt 00:09:45]} c6 {[%clk 01:16:47]}
{[%emt 00:01:52]} 13. b5 {[%clk 01:11:49]} {[%emt 00:00:01]} f4 {[%clk
01:01:16]} {[%emt 00:16:00]} 14. bxc6 {[%clk 01:09:42]} {[%emt 00:02:37]} bxc6
{[%clk 01:00:42]} {[%emt 00:01:03]} 15. Qb3 {[%clk 01:06:07]} {[%emt 00:04:06]}
Qh5 {[%clk 00:42:48]} {[%emt 00:18:24]} 16. Qb7 {[%clk 00:55:31]} {[%emt
00:11:06]} Nbd7 {[%clk 00:42:03]} {[%emt 00:01:15]} 17. Qxc6 {[%clk 00:54:33]}
{[%emt 00:01:28]} Rac8 {[%clk 00:41:32]} {[%emt 00:01:01]} 18. Qa4 {[%clk
00:53:34]} {[%emt 00:01:30]} Bh3 {[%clk 00:29:50]} {[%emt 00:12:11]} 19. f3
{[%clk 00:49:25]} {[%emt 00:04:38]} d5 {[%clk 00:28:38]} {[%emt 00:01:43]} 20.
g4 {[%emt 00:04:15]} Qh4 {[%clk 00:27:39]} {[%emt 00:01:27]} 21. Nxd5 {[%clk
00:39:14]} {[%emt 00:06:59]} Nxd5 {[%clk 00:27:21]} {[%emt 00:00:48]} 22. cxd5
{[%clk 00:39:13]} {[%emt 00:00:31]} Bc5+ {[%clk 00:27:25]} {[%emt 00:00:26]} 23.
Kh1 {[%clk 00:39:27]} {[%emt 00:00:15]} Nf6 {[%clk 00:25:04]} {[%emt 00:02:51]}
24. Bd2 {[%clk 00:27:55]} {[%emt 00:12:02]} Kh8 {[%clk 00:14:31]} {[%emt
00:11:04]} 25. Bxh3 {[%clk 00:22:30]} {[%emt 00:05:55]} Qxh3 {[%clk 00:14:56]}
{[%emt 00:00:05]} 26. Ng2 {[%clk 00:22:55]} {[%emt 00:00:04]} h5 {[%clk
00:12:27]} {[%emt 00:03:00]} 27. Bxf4 {[%clk 00:15:10]} {[%emt 00:08:15]} hxg4
{[%clk 00:05:09]} {[%emt 00:07:47]} 28. Bxe5 {[%clk 00:14:21]} {[%emt
00:01:20]} Rce8 {[%clk 00:00:39]} {[%emt 00:05:00]} 29. Bxf6 {[%clk 00:05:05]}
{[%emt 00:09:46]} Bd6 {[%clk 00:00:54]} {[%emt 00:00:15]} 30. Nf4 {[%clk
00:05:14]} {[%emt 00:00:21]} Qh6 {[%clk 00:01:21]} {[%emt 00:00:03]} 31. fxg4
{[%clk 00:03:56]} {[%emt 00:01:48]} Rxe2 {[%clk 00:00:53]} {[%emt 00:00:59]} 32.
Bxg7+ {[%clk 00:02:12]} {[%emt 00:02:14]} Kxg7 {[%clk 00:01:17]} {[%emt
00:00:05]} 33. Nh5+ {[%clk 00:02:12]} {[%emt 00:00:31]} Kh8 {[%clk 00:00:58]}
{[%emt 00:00:49]} 34. Qa7 {[%clk 00:01:07]} {[%emt 00:01:35]} Rxh2+ {[%clk
00:00:50]} {[%emt 00:00:38]} 35. Kg1 {[%clk 00:01:36]} Rxh5 {[%clk 00:00:39]}
{[%emt 00:00:41]} 36. Rxf8+ {[%clk 00:00:34]} {[%emt 00:01:33]} Qxf8 {[%clk
00:01:08]} 37. Qe3 {[%clk 00:00:35]} {[%emt 00:00:29]} Qg8 {[%clk 00:00:35]}
{[%emt 00:01:03]} 38. Qd4+ {[%clk 00:00:35]} {[%emt 00:00:30]} Be5 {[%clk
00:00:54]} {[%emt 00:00:11]} 39. Qe4 {[%clk 00:00:41]} {[%emt 00:00:24]} Rg5
{[%clk 00:00:56]} {[%emt 00:00:29]} 40. Qh1+ {[%clk 00:00:39]} {[%emt
00:00:31]} Qh7 {[%clk 00:00:38]} {[%emt 00:00:48]} 41. Qxh7+ {[%clk 00:00:42]}
{[%emt 00:00:27]} Kxh7 {[%clk 00:01:03]} {[%emt 00:00:05]} 42. Rb7+ {[%clk
00:00:45]} {[%emt 00:00:26]} Kg8 {[%clk 00:28:29]} {[%emt 00:03:06]} 43. Rb4
{[%clk 00:30:43]} {[%emt 00:00:30]} Bd6 {[%clk 00:28:40]} {[%emt 00:00:20]} 44.
Re4 {[%clk 00:31:02]} {[%emt 00:00:09]} Rxd5 {[%clk 00:29:03]} {[%emt
00:00:09]} 45. d4 {[%clk 00:31:30]} Bc7 {[%clk 00:28:53]} {[%emt 00:00:40]} 46.
Kf2 {[%clk 00:31:08]} {[%emt 00:00:52]} Kf7 {[%clk 00:27:44]} {[%emt 00:01:40]}
1/2-1/2

[Event "Junior-SM 2025"]
[Site "Uppsala, Sweden"]
[Date "2025.06.28"]
[Round "1.2"]
[White "Frank, Anton"]
[Black "Karlsson, Stefan"]
[Result "1-0"]
[TimeControl "90 min for 40 move + 30 min with an increment of 30 sec starting move 1"]
[WhiteTitle "CM"]
[WhiteFideId "1752383"]
[BlackFideId "1771183"]
[WhiteElo "2183"]
[BlackElo "2126"]

1. e4 {[%clk 01:30:56]} {[%emt 00:00:04]} c5 {[%clk 01:30:43]} {[%emt
00:00:17]} 2. Nf3 {[%clk 01:31:20]} {[%emt 00:00:06]} d6 {[%clk 01:31:06]}
{[%emt 00:00:07]} 3. d4 {[%clk 01:31:45]} {[%emt 00:00:04]} cxd4 {[%clk
01:31:32]} {[%emt 00:00:07]} 4. Nxd4 {[%clk 01:32:09]} {[%emt 00:00:05]} Nf6
{[%clk 01:31:56]} {[%emt 00:00:05]} 5. Nc3 {[%clk 01:32:32]} {[%emt 00:00:07]}
Nc6 {[%clk 01:32:20]} {[%emt 00:00:06]} 6. Bg5 {[%clk 01:32:57]} {[%emt
00:00:05]} g6 {[%clk 01:32:42]} {[%emt 00:00:08]} 7. Bxf6 {[%clk 01:33:08]}
{[%emt 00:00:20]} exf6 {[%clk 01:33:03]} {[%emt 00:00:08]} 8. Bb5 {[%clk
01:33:08]} {[%emt 00:00:30]} Bd7 {[%clk 01:33:20]} {[%emt 00:00:14]} 9. Qd2
{[%clk 01:33:25]} {[%emt 00:00:12]} Bg7 {[%clk 01:32:52]} {[%emt 00:00:58]} 10.
O-O-O {[%clk 01:25:31]} {[%emt 00:08:24]} O-O {[%clk 01:32:24]} {[%emt
00:00:57]} 11. Nb3 {[%clk 01:23:24]} {[%emt 00:02:38]} a6 {[%clk 01:30:10]}
{[%emt 00:02:44]} 12. Bxc6 {[%clk 01:09:33]} {[%emt 00:14:21]} Bxc6 {[%clk
01:30:20]} {[%emt 00:00:20]} 13. Qxd6 {[%clk 01:05:08]} {[%emt 00:04:55]} Qxd6
{[%clk 01:29:17]} {[%emt 00:01:33]} 14. Rxd6 {[%clk 01:03:43]} {[%emt
00:01:55]} f5 {[%clk 01:29:23]} {[%emt 00:00:23]} 15. exf5 {[%clk 00:52:06]}
{[%emt 00:12:08]} Bxg2 {[%clk 01:29:30]} {[%emt 00:00:23]} 16. Rg1 {[%clk
00:50:31]} {[%emt 00:02:03]} Bc6 {[%clk 01:24:35]} {[%emt 00:05:25]} 17. Rd3
{[%clk 00:39:10]} {[%emt 00:11:52]} Rad8 {[%clk 01:02:35]} {[%emt 00:22:29]} 18.
Rgd1 {[%clk 00:22:00]} {[%emt 00:17:40]} Bh6+ {[%clk 01:00:22]} {[%emt
00:02:43]} 19. Kb1 {[%clk 00:22:09]} {[%emt 00:00:22]} Rxd3 {[%clk 01:00:36]}
{[%emt 00:00:16]} 20. cxd3 {[%clk 00:16:53]} {[%emt 00:05:46]} Bf3 {[%clk
00:45:59]} {[%emt 00:15:07]} 21. Re1 {[%clk 00:16:25]} {[%emt 00:00:58]} Rd8
{[%clk 00:46:03]} {[%emt 00:00:25]} 22. fxg6 {[%clk 00:14:28]} {[%emt
00:02:27]} hxg6 {[%clk 00:35:12]} {[%emt 00:11:21]} 23. Kc2 {[%clk 00:14:50]}
{[%emt 00:00:08]} Bf4 {[%clk 00:34:57]} {[%emt 00:00:45]} 24. h4 {[%clk
00:12:22]} {[%emt 00:02:58]} Kg7 {[%clk 00:33:15]} {[%emt 00:02:12]} 25. Rg1
{[%clk 00:09:52]} {[%emt 00:03:00]} f5 {[%clk 00:31:16]} {[%emt 00:02:29]} 26.
Nd2 {[%clk 00:07:13]} {[%emt 00:03:10]} Bh5 {[%clk 00:18:59]} {[%emt 00:12:46]}
27. Re1 {[%clk 00:06:41]} {[%emt 00:01:02]} Kf6 {[%clk 00:10:20]} {[%emt
00:09:09]} 28. a4 {[%clk 00:06:40]} {[%emt 00:00:32]} Bc7 {[%clk 00:09:10]}
{[%emt 00:01:39]} 29. b4 {[%clk 00:04:52]} {[%emt 00:02:19]} Rd4 {[%clk
00:07:32]} {[%emt 00:02:07]} 30. Nb3 {[%clk 00:04:19]} {[%emt 00:01:03]} Rd6
{[%clk 00:05:51]} {[%emt 00:02:11]} 31. Nc5 {[%clk 00:03:25]} {[%emt 00:01:25]}
Bf3 {[%clk 00:06:12]} {[%emt 00:00:08]} 32. Re3 {[%clk 00:03:33]} {[%emt
00:00:23]} Bg2 {[%clk 00:03:58]} {[%emt 00:02:44]} 33. f3 {[%clk 00:02:25]}
{[%emt 00:01:38]} Bb6 {[%clk 00:03:38]} {[%emt 00:00:51]} 34. d4 {[%clk
00:01:37]} {[%emt 00:01:18]} Kf7 {[%clk 00:03:18]} {[%emt 00:00:49]} 35. d5
{[%clk 00:01:32]} {[%emt 00:00:36]} a5 {[%clk 00:02:21]} {[%emt 00:01:27]} 36.
Nxb7 {[%clk 00:00:53]} {[%emt 00:01:09]} Bxe3 {[%clk 00:02:17]} {[%emt
00:00:33]} 37. Nxd6+ {[%clk 00:01:21]} {[%emt 00:00:02]} Ke7 {[%clk 00:02:09]}
{[%emt 00:00:37]} 38. Nc4 {[%clk 00:01:41]} {[%emt 00:00:11]} Bf2 {[%clk
00:01:11]} {[%emt 00:01:28]} 39. Nxa5 {[%clk 00:01:03]} {[%emt 00:01:10]} Bxf3
{[%clk 00:01:02]} {[%emt 00:00:38]} 40. Nc4 {[%clk 00:00:43]} {[%emt 00:00:50]}
Bxh4 {[%clk 00:01:04]} {[%emt 00:00:28]} 41. a5 {[%clk 00:22:19]} {[%emt
00:08:54]} Bf6 {[%clk 00:20:17]} {[%emt 00:11:15]} 42. a6 {[%clk 00:14:04]}
{[%emt 00:08:47]} Bxc3 {[%clk 00:15:48]} {[%emt 00:04:57]} 43. d6+ {[%clk
00:14:15]} {[%emt 00:00:20]} Kd7 {[%clk 00:15:37]} {[%emt 00:00:42]} 44. Kxc3
{[%clk 00:14:34]} {[%emt 00:00:10]} g5 {[%clk 00:14:47]} {[%emt 00:01:20]} 45.
Ne5+ {[%clk 00:13:44]} {[%emt 00:01:21]} Kxd6 {[%clk 00:15:08]} {[%emt
00:00:08]} 46. Nxf3 {[%clk 00:14:05]} {[%emt 00:00:10]} g4 {[%clk 00:15:31]}
{[%emt 00:00:06]} 47. a7 {[%clk 00:14:15]} {[%emt 00:00:20]} 1-0